fUST/lending_fUST_20260127
["ID","MTS","AMOUNT","RATE_DAILY","PERIOD"]
[403736499,1769520641206,-720.0,0.00015075,2]
[403736500,1769520641215,-274.46400997,0.0001515,20]
[403736501,1769520641223,-151.0,0.000152,2]
[403736503,1769520641232,-1200.0,0.00015316,2]
[403736505,1769520641241,-2194.25,0.00015342,2]
[403736507,1769520641250,-2000.0,0.00015342,2]
[403736509,1769520641259,-2000.0,0.00015342,2]
[403736511,1769520641268,-2000.0,0.00015342,2]
[403736513,1769520641277,-1386.16038037,0.00015342,2]
[403736515,1769520641286,-2000.0,0.00015342,2]
[403736517,1769520641295,-1500.0,0.00015342,2]
[403736519,1769520641306,-200.0,0.00015399,2]
[403736521,1769520641316,-588.44180529,0.000154,2]
[403736523,1769520641326,-730479.1855924,0.000154,2]
[403736525,1769520641335,-500.0,0.00015464,2]
[403736527,1769520641343,-2500.0,0.00015464,2]
[403736529,1769520641352,-2500.0,0.00015464,2]
[403736531,1769520641362,-2500.0,0.00015464,2]
[403736533,1769520641371,-2500.0,0.00015464,2]
[403736535,1769520641380,-2500.0,0.00015464,2]
[403736537,1769520641389,-2500.0,0.00015464,2]
[403736539,1769520641398,-2500.0,0.00015464,2]
[403736541,1769520641408,-448.22561692,0.00015464,2]
[403736543,1769520641417,-2500.0,0.00015464,2]
[403736545,1769520641426,-1320.32,0.00015559,2]
[403736547,1769520641435,-1957.856,0.0001557,2]
[403736549,1769520641444,-30000.0,0.0001557,2]
[403736551,1769520641453,-500.0,0.0001557,2]
[403736553,1769520641462,-162.380719,0.0001557,2]
[403736556,1769520641475,-395.72,0.0001557,2]
[403736558,1769520641484,-553.64373807,0.0001557,2]
[403736560,1769520641494,-2674.60743027,0.0001557,2]
[403736561,1769520641505,-151.0,0.0001557,2]
[403736563,1769520641514,-151.0,0.0001557,2]
[403736565,1769520641523,-151.0,0.0001557,2]
[403736567,1769520641532,-151.0,0.0001557,2]
[403736568,1769520641541,-151.0,0.0001557,2]
[403736570,1769520641550,-151.0,0.0001557,2]
[403736572,1769520641559,-151.0,0.0001557,2]
[403736574,1769520641568,-151.0,0.0001557,2]
[403736576,1769520641578,-151.0,0.0001557,2]
[403736577,1769520641587,-151.0,0.0001557,2]
[403736579,1769520641596,-151.0,0.0001557,2]
[403736581,1769520641606,-151.0,0.0001557,2]
[403736583,1769520641615,-151.0,0.0001557,2]
[403736585,1769520641625,-151.0,0.0001557,2]
[403736587,1769520641635,-151.0,0.0001557,2]
[403736589,1769520641644,-151.0,0.0001557,2]
[403736590,1769520641654,-151.0,0.0001557,2]
[403736592,1769520641664,-151.0,0.0001557,2]
[403736593,1769520641673,-164.81135061,0.0001557,2]
[403736594,1769520641683,-206.80518095,0.0001557,2]
[403736595,1769520641692,-361.84353222,0.00015584,2]
[403736596,1769520641701,-2030.296672,0.00015625,2]
[403736597,1769520641710,-179.9820018,0.00015675,2]
[403736598,1769520641720,-1118.09358773,0.0001568,2]
[403736599,1769520641731,-587.0,0.00015716,2]
[403736600,1769520641741,-1112.0,0.00015813,2]
[403736601,1769520641750,-1500.0,0.00015864,2]
[403736602,1769520641760,-151.0,0.0001589,2]
[403736603,1769520641769,-151.0,0.0001589,2]
[403736604,1769520641779,-151.0,0.0001589,2]
[403736605,1769520641788,-151.0,0.0001589,2]
[403736606,1769520641797,-174.357781,0.0001589,2]
[403736607,1769520641806,-725.961314,0.0001589,2]
[403736608,1769520641819,-725.961314,0.0001589,2]
[403736609,1769520641828,-725.961314,0.0001589,2]
[403736610,1769520641838,-725.961314,0.0001589,2]
[403736611,1769520641849,-2500.0,0.0001589,2]
[403736612,1769520641860,-2500.0,0.0001589,2]
[403736613,1769520641870,-2500.0,0.0001589,2]
[403736614,1769520641879,-2500.0,0.0001589,2]
[403736615,1769520641889,-1160.41327999,0.00016012,2]
[403736616,1769520641898,-2556.86628974,0.00016012,2]
[403736617,1769520641907,-2000.0,0.00016012,2]
[403736618,1769520641917,-3000.0,0.00016012,2]
[403736619,1769520641926,-3000.0,0.00016012,2]
[403736620,1769520641935,-3000.0,0.00016012,2]
[403736621,1769520641946,-3000.0,0.00016012,2]
[403736622,1769520641955,-3000.0,0.00016012,2]
[403736623,1769520641965,-31110.0,0.00016118,2]
[403736624,1769520641974,-574.12855637,0.00016118,2]
[403736625,1769520641984,-2773.56790519,0.00016118,2]
[403736626,1769520641993,-9153.26457832,0.00016189,2]
[403736627,1769520642003,-413.5354654,0.00016224,2]
[403736628,1769520642015,-708.84,0.00016264,2]
[403736629,1769520642024,-1800.0,0.00016412,2]
[403736630,1769520642034,-500.0,0.00016438,2]
[403736631,1769520642045,-151.0,0.00016438,2]
[403736632,1769520642055,-151.0,0.00016438,2]
[403736633,1769520642064,-227.72467895,0.00016438,2]
[403736634,1769520642074,-3000.0,0.00016438,2]
[403736635,1769520642085,-500.0,0.00016438,2]
[403736636,1769520642096,-1500.0,0.00016438,2]
[403736637,1769520642106,-200.07068234,0.00016473,2]
[403736638,1769520642115,-500.0,0.00016526,2]
[403736639,1769520642125,-500.0,0.00016526,2]
[403736640,1769520642135,-500.0,0.00016526,2]
[403736641,1769520642145,-500.0,0.00016526,2]
[403736642,1769520642157,-500.0,0.00016526,2]
[403736643,1769520642166,-500.0,0.00016526,2]
[403736644,1769520642177,-500.0,0.00016526,2]
[403736645,1769520642187,-500.0,0.00016526,2]
[403736646,1769520642197,-500.0,0.00016526,2]
[403736647,1769520642207,-181.51,0.00016526,2]
[403736648,1769520642217,-3500.0,0.0001656,2]
[403736649,1769520642226,-3500.0,0.0001656,2]
[403736650,1769520642236,-1451.8102882,0.0001656,2]
[403736651,1769520642246,-2500.0,0.0001656,2]
[403736652,1769520642255,-3328.85776734,0.0001656,2]
[403736653,1769520642265,-864.0,0.00016583,2]
[403736654,1769520642275,-9836.22573926,0.00016666,2]
[403736655,1769520642285,-595.37131296,0.00016666,2]
[403736656,1769520642294,-2876.18991768,0.00016666,2]
[403736657,1769520642303,-645.50301552,0.00016864,2]
[403736658,1769520642313,-1818.12397634,0.0001696,2]
[403736659,1769520642322,-615.71955138,0.00016986,2]
[403736660,1769520642331,-160.0,0.00017001,2]
[403736661,1769520642340,-250.0,0.00017002,2]
[403736662,1769520642349,-250.0,0.00017002,2]
[403736663,1769520642358,-250.0,0.00017002,2]
[403736664,1769520642369,-160.0,0.00017002,2]
[403736665,1769520642378,-250.0,0.00017002,2]
[403736666,1769520642388,-160.0,0.00017002,2]
[403736667,1769520642397,-250.0,0.00017002,2]
[403736668,1769520642407,-160.0,0.00017002,2]
[403736669,1769520642417,-324.25448447,0.00017002,2]
[403736670,1769520642426,-278.15468107,0.00017002,2]
[403736671,1769520642435,-201.93286099,0.00017002,2]
[403736672,1769520642444,-209.40437684,0.00017002,2]
[403736673,1769520642454,-217.15233878,0.00017002,2]
[403736674,1769520642463,-225.18697532,0.00017002,2]
[403736675,1769520642472,-233.51889341,0.00017002,2]
[403736676,1769520642482,-242.15909246,0.00017002,2]
[403736677,1769520642491,-251.11897888,0.00017002,2]
[403736678,1769520642500,-260.4103811,0.00017002,2]
[403736679,1769520642510,-270.0455652,0.00017002,2]
[403736680,1769520642520,-280.03725112,0.00017002,2]
[403736681,1769520642529,-290.39862941,0.00017002,2]
[403736682,1769520642539,-301.1433787,0.00017002,2]
[403736683,1769520642548,-151.0,0.00017002,2]
[403736684,1769520642559,-151.0,0.00017002,2]
[403736685,1769520642715,-151.0,0.00017002,2]
[403736686,1769520642724,-151.0,0.00017002,2]
[403736687,1769520642733,-151.0,0.00017002,2]
[403736688,1769520642743,-725.961314,0.00017002,2]
[403736689,1769520642752,-725.961314,0.00017002,2]
[403736690,1769520642761,-725.961314,0.00017002,2]
[403736691,1769520642771,-725.961314,0.00017002,2]
[403736692,1769520642789,-492.87544452,0.00017018,2]
[403736693,1769520642800,-1417.68,0.00017038,2]
[403736694,1769520642810,-150.45045336,0.00017101,2]
[403736695,1769520642820,-500.0,0.00017101,2]
[403736696,1769520642830,-150.0,0.00017101,2]
[403736697,1769520642840,-500.0,0.00017101,2]
[403736698,1769520642850,-500.0,0.00017101,2]
[403736699,1769520642860,-500.0,0.00017101,2]
[403736700,1769520642869,-150.0,0.00017101,2]
[403736701,1769520642879,-150.0,0.00017101,2]
[403736702,1769520642888,-500.0,0.00017101,2]
[403736703,1769520642898,-200.79251461,0.00017101,2]
[403736704,1769520642908,-150.0,0.00017101,2]
[403736705,1769520642917,-250.0,0.00017101,2]
[403736706,1769520642927,-250.0,0.00017101,2]
[403736707,1769520642936,-150.16342399,0.00017101,2]
[403736708,1769520642946,-250.0,0.00017177,2]
[403736709,1769520642955,-476.51596718,0.00017214,2]
[403736710,1769520642965,-2982.60894464,0.00017214,2]
[403736711,1769520642974,-823.0,0.00017234,2]
[403736712,1769520642983,-500.0,0.00017238,2]
[403736713,1769520642992,-500.0,0.00017238,2]
[403736714,1769520643001,-500.0,0.00017238,2]
[403736715,1769520643010,-500.0,0.00017238,2]
[403736716,1769520643020,-150.0,0.00017238,2]
[403736717,1769520643029,-150.0,0.00017238,2]
[403736718,1769520643038,-500.0,0.00017238,2]
[403736719,1769520643049,-150.0,0.00017238,2]
[403736720,1769520643058,-1084.87424796,0.00017264,2]
[403736721,1769520643068,-500.0,0.00017375,2]
[403736722,1769520643079,-500.0,0.00017375,2]
[403736723,1769520643089,-500.0,0.00017375,2]
[403736724,1769520643101,-500.0,0.00017375,2]
[403736725,1769520643111,-150.0,0.00017375,2]
[403736726,1769520643121,-150.0,0.00017375,2]
[403736727,1769520643131,-500.0,0.00017375,2]
[403736728,1769520643140,-150.0,0.00017375,2]
[403736729,1769520643152,-8657.46981776,0.000175,3]
[403736730,1769520643163,-500.0,0.00017512,2]
[403736731,1769520643172,-500.0,0.00017512,2]
[403736732,1769520643182,-500.0,0.00017512,2]
[403736733,1769520643191,-500.0,0.00017512,2]
[403736734,1769520643200,-150.0,0.00017512,2]
[403736735,1769520643209,-200.0,0.00017512,2]
[403736736,1769520643219,-500.0,0.00017512,2]
[403736737,1769520643228,-150.0,0.00017512,2]
[403736738,1769520643237,-160.0,0.00017549,2]
[403736739,1769520643246,-1041.66666667,0.000176,2]
[403736740,1769520643256,-210.22295055,0.000176,2]
[403736741,1769520643265,-500.0,0.00017649,2]
[403736742,1769520643274,-500.0,0.00017649,2]
[403736744,1769520643284,-500.0,0.00017649,2]
[403736745,1769520643293,-470.82635095,0.00017649,2]
[403736746,1769520643303,-186.50377606,0.00017649,2]
[403736747,1769520643313,-400.0,0.00017649,2]
[403736748,1769520643322,-161.32015771,0.00017649,2]
[403736749,1769520643331,-500.0,0.00017786,2]
[403736750,1769520643340,-500.0,0.00017786,2]
[403736751,1769520643350,-500.0,0.00017786,2]
[403736752,1769520643359,-2126.52,0.00017813,2]
[403736753,1769520643370,-500.0,0.00017923,2]
[403736754,1769520643379,-500.0,0.00017923,2]
[403736755,1769520643388,-500.0,0.00017923,2]
[403736756,1769520643398,-2549.639505,0.00017923,7]
[403736757,1769520643407,-196973.3767327,0.00018,2]
[403736758,1769520643416,-151.782866,0.00018,2]
[403736759,1769520643426,-801.50775808,0.00018044,7]
[403736760,1769520643437,-500.0,0.0001806,2]
[403736761,1769520643447,-500.0,0.0001806,2]
[403736762,1769520643457,-500.0,0.0001806,2]
[403736763,1769520643466,-500.0,0.00018197,2]
[403736764,1769520643475,-500.0,0.00018197,2]
[403736765,1769520643487,-500.0,0.00018197,2]
[403736766,1769520643496,-1000.0,0.00018241,2]
[403736767,1769520643506,-151.0,0.00018241,2]
[403736768,1769520643515,-299.641432,0.00018241,2]
[403736769,1769520643525,-500.0,0.00018334,2]
[403736770,1769520643535,-500.0,0.00018334,2]
[403736771,1769520643544,-500.0,0.00018334,2]
[403736772,1769520643556,-729.0,0.000184,2]
[403736773,1769520643565,-729.0,0.000184,2]
[403736774,1769520643575,-729.0,0.000184,2]
[403736775,1769520643584,-553.0,0.000184,2]
[403736776,1769520643593,-500.0,0.00018471,2]
[403736777,1769520643606,-605.45611552,0.00018471,2]
[403736778,1769520643615,-500.0,0.00018471,2]
[403736779,1769520643626,-1000.0,0.00018559,5]
[403736780,1769520643636,-2835.36,0.00018587,2]
[403736781,1769520643646,-500.0,0.00018608,2]
[403736782,1769520643657,-419.63216851,0.00018608,2]
[403736783,1769520643666,-316.807543,0.00018715,7]
[403736784,1769520643676,-151.0,0.00018715,2]
[403736785,1769520643686,-151.0,0.00018715,2]
[403736786,1769520643696,-851.937154,0.00018715,7]
[403736787,1769520643705,-725.961314,0.00018715,2]
[403736788,1769520643714,-725.961314,0.00018715,2]
[403736789,1769520643725,-725.961314,0.00018715,2]
[403736790,1769520643734,-725.961314,0.00018715,2]
[403736791,1769520643743,-729.0,0.0001872,2]
[403736792,1769520643753,-729.0,0.0001872,2]
[403736793,1769520643762,-356.10404976,0.00018745,2]
[403736794,1769520643771,-389.3154552,0.00018767,2]
[403736795,1769520643782,-1152.0,0.00018898,2]
[403736796,1769520643791,-303.10001603,0.000189,2]
[403736797,1769520643801,-303.10001603,0.000189,2]
[403736798,1769520643810,-1159.90615842,0.00018994,7]
[403736799,1769520643820,-165.13470443,0.00018999,2]
[403736800,1769520643829,-54731.0253769,0.00019,2]
[403736801,1769520643839,-558.10895924,0.00019018,2]
[403736802,1769520643848,-551.05497,0.00019038,7]
[403736803,1769520643857,-729.0,0.0001904,2]
[403736804,1769520643866,-729.0,0.0001904,2]
[403736805,1769520643876,-168.0,0.00019074,2]
[403736806,1769520643885,-303.10001603,0.00019089,2]
[403736807,1769520643894,-303.10001603,0.00019089,2]
[403736808,1769520643903,-433.0,0.00019099,2]
[403736809,1769520643912,-1032.0,0.000191,2]
[403736810,1769520643921,-160.0,0.00019177,2]
[403736811,1769520643931,-579.29465284,0.00019178,2]
[403736812,1769520643940,-1042.73037512,0.00019178,2]
[403736813,1769520643950,-1853.7428891,0.00019178,2]
[403736814,1769520643960,-2896.47326422,0.00019178,2]
[403736815,1769520643970,-400.69962655,0.00019178,2]
[403736816,1769520643980,-721.25932778,0.00019178,2]
[403736817,1769520643991,-1282.23880494,0.00019178,2]
[403736818,1769520644000,-2003.49813273,0.00019178,2]
[403736819,1769520644011,-173.64857617,0.00019178,2]
[403736820,1769520644020,-312.56743711,0.00019178,2]
[403736821,1769520644029,-321.44,0.00019178,2]
[403736822,1769520644039,-1269.957,0.00019178,2]
[403736823,1769520644049,-1269.957,0.00019178,2]
[403736824,1769520644058,-707.98,0.00019178,2]
[403736825,1769520644068,-153.5789033,0.00019178,2]
[403736826,1769520644077,-335.0,0.00019178,2]
[403736827,1769520644087,-335.0,0.00019178,2]
[403736828,1769520644096,-335.0,0.00019178,2]
[403736829,1769520644105,-335.0,0.00019178,2]
[403736830,1769520644115,-335.0,0.00019178,2]
[403736831,1769520644124,-335.0,0.00019178,2]
[403736832,1769520644133,-335.0,0.00019178,2]
[403736833,1769520644142,-335.0,0.00019178,2]
[403736834,1769520644152,-335.0,0.00019178,2]
[403736835,1769520644164,-335.0,0.00019178,2]
[403736836,1769520644173,-335.0,0.00019178,2]
[403736837,1769520644185,-335.0,0.00019178,2]
[403736838,1769520644195,-335.0,0.00019178,2]
[403736839,1769520644204,-335.0,0.00019178,2]
[403736840,1769520644213,-335.0,0.00019178,2]
[403736841,1769520644225,-335.0,0.00019178,2]
[403736842,1769520644235,-335.0,0.00019178,2]
[403736843,1769520644244,-335.0,0.00019178,2]
[403736844,1769520644254,-335.0,0.00019178,2]
[403736845,1769520644263,-335.0,0.00019178,2]
[403736846,1769520644276,-335.0,0.00019178,2]
[403736847,1769520644285,-335.0,0.00019178,2]
[403736848,1769520644294,-335.0,0.00019178,2]
[403736849,1769520644305,-335.0,0.00019178,2]
[403736850,1769520644315,-335.0,0.00019178,2]
[403736851,1769520644324,-335.0,0.00019178,2]
[403736852,1769520644333,-335.0,0.00019178,2]
[403736853,1769520644342,-335.0,0.00019178,2]
[403736854,1769520644352,-335.0,0.00019178,2]
[403736855,1769520644361,-335.0,0.00019178,2]
[403736856,1769520644371,-335.0,0.00019178,2]
[403736857,1769520644380,-335.0,0.00019178,2]
[403736858,1769520644390,-335.0,0.00019178,2]
[403736859,1769520644399,-335.0,0.00019178,2]
[403736860,1769520644409,-335.0,0.00019178,2]
[403736861,1769520644419,-335.0,0.00019178,2]
[403736862,1769520644428,-335.0,0.00019178,2]
[403736863,1769520644438,-335.0,0.00019178,2]
[403736864,1769520644447,-335.0,0.00019178,2]
[403736865,1769520644457,-335.0,0.00019178,2]
[403736866,1769520644467,-335.0,0.00019178,2]
[403736867,1769520644476,-335.0,0.00019178,2]
[403736868,1769520644485,-335.0,0.00019178,2]
[403736869,1769520644495,-335.0,0.00019178,2]
[403736870,1769520644504,-335.0,0.00019178,2]
[403736871,1769520644514,-335.0,0.00019178,2]
[403736872,1769520644524,-335.0,0.00019178,2]
[403736873,1769520644533,-335.0,0.00019178,2]
[403736874,1769520644543,-335.0,0.00019178,2]
[403736875,1769520644553,-335.0,0.00019178,2]
[403736876,1769520644562,-335.0,0.00019178,2]
[403736877,1769520644571,-335.0,0.00019178,2]
[403736878,1769520644581,-335.0,0.00019178,2]
[403736879,1769520644592,-335.0,0.00019178,2]
[403736880,1769520644602,-335.0,0.00019178,2]
[403736881,1769520644612,-335.0,0.00019178,2]
[403736882,1769520644622,-335.0,0.00019178,2]
[403736883,1769520644632,-335.0,0.00019178,2]
[403736884,1769520644642,-335.0,0.00019178,2]
[403736885,1769520644658,-335.0,0.00019178,2]
[403736886,1769520644668,-335.0,0.00019178,2]
[403736887,1769520644678,-335.0,0.00019178,2]
[403736888,1769520644689,-335.0,0.00019178,2]
[403736889,1769520644699,-335.0,0.00019178,2]
[403736890,1769520644708,-335.0,0.00019178,2]
[403736891,1769520644718,-335.0,0.00019178,2]
[403736892,1769520644737,-335.0,0.00019178,2]
[403736893,1769520644746,-335.0,0.00019178,2]
[403736894,1769520644756,-335.0,0.00019178,2]
[403736895,1769520644765,-335.0,0.00019178,2]
[403736896,1769520644775,-335.0,0.00019178,2]
[403736897,1769520644784,-335.0,0.00019178,2]
[403736898,1769520644795,-335.0,0.00019178,2]
[403736899,1769520644805,-335.0,0.00019178,2]
[403736900,1769520644814,-335.0,0.00019178,2]
[403736901,1769520644826,-335.0,0.00019178,2]
[403736902,1769520644835,-335.0,0.00019178,2]
[403736903,1769520644845,-335.0,0.00019178,2]
[403736904,1769520644855,-335.0,0.00019178,2]
[403736905,1769520644865,-335.0,0.00019178,2]
[403736906,1769520644875,-335.0,0.00019178,2]
[403736907,1769520644884,-335.0,0.00019178,2]
[403736908,1769520644893,-335.0,0.00019178,2]
[403736909,1769520644902,-335.0,0.00019178,2]
[403736910,1769520644911,-335.0,0.00019178,2]
[403736911,1769520644921,-335.0,0.00019178,2]
[403736912,1769520644930,-335.0,0.00019178,2]
[403736913,1769520644939,-335.0,0.00019178,2]
[403736914,1769520644949,-335.0,0.00019178,2]
[403736915,1769520644959,-335.0,0.00019178,2]
[403736916,1769520644969,-195.43253224,0.00019178,2]
[403736917,1769520644980,-151.0,0.00019178,2]
[403736918,1769520644989,-151.0,0.00019178,2]
[403736919,1769520644999,-151.0,0.00019178,2]
[403736920,1769520645009,-507.9828,0.00019178,2]
[403736921,1769520645019,-507.98,0.00019178,2]
[403736922,1769520645028,-507.9828,0.00019178,2]
[403736923,1769520645038,-725.961314,0.00019178,2]
[403736924,1769520645048,-725.961314,0.00019178,2]
[403736925,1769520645058,-725.961314,0.00019178,2]
[403736926,1769520645068,-725.961314,0.00019178,2]
[403736927,1769520645077,-507.9828,0.00019178,2]
[403736928,1769520645087,-555.67544376,0.00019178,2]
[403736929,1769520645097,-241.97618937,0.00019178,2]
[403736930,1769520645107,-276.54421642,0.00019178,2]
[403736931,1769520645117,-431.66823782,0.00019178,2]
[403736932,1769520645126,-234.857749,0.00019178,2]
[403736933,1769520645135,-234.857749,0.00019178,2]
[403736934,1769520645144,-234.857749,0.00019178,2]
[403736935,1769520645153,-234.857749,0.00019178,2]
[403736936,1769520645163,-151.0,0.00019178,2]
[403736937,1769520645173,-151.0,0.00019178,2]
[403736938,1769520645183,-151.0,0.00019178,2]
[403736939,1769520645192,-229.808374,0.00019178,2]
[403736940,1769520645202,-151.0,0.00019178,2]
[403736941,1769520645211,-151.0,0.00019178,2]
[403736942,1769520645220,-151.0,0.00019178,2]
[403736943,1769520645229,-152.972032,0.00019178,2]
[403736944,1769520645239,-151.0,0.00019178,2]
[403736945,1769520645249,-151.0,0.00019178,2]
[403736946,1769520645259,-194.873958,0.00019178,2]
[403736947,1769520645267,-151.306167,0.00019178,2]
[403736948,1769520645276,-151.0,0.00019178,2]
[403736949,1769520645285,-151.0,0.00019178,2]
[403736950,1769520645297,-151.0,0.00019178,2]
[403736951,1769520645306,-347.428255,0.00019178,2]
[403736952,1769520645315,-151.0,0.00019178,2]
[403736953,1769520645324,-347.428255,0.00019178,2]
[403736954,1769520645333,-347.428255,0.00019178,2]
[403736955,1769520645342,-347.428255,0.00019178,2]
[403736956,1769520645353,-347.428255,0.00019178,2]
[403736957,1769520645362,-347.428255,0.00019178,2]
[403736958,1769520645371,-347.428255,0.00019178,2]
[403736959,1769520645380,-347.428255,0.00019178,2]
[403736960,1769520645392,-151.0,0.00019178,2]
[403736961,1769520645401,-151.0,0.00019178,2]
[403736962,1769520645411,-151.0,0.00019178,2]
[403736963,1769520645421,-151.0,0.00019178,2]
[403736964,1769520645430,-257.082489,0.00019178,2]
[403736965,1769520645441,-1488.040989,0.00019178,2]
[403736966,1769520645451,-1488.040989,0.00019178,2]
[403736967,1769520645460,-1488.040989,0.00019178,2]
[403736968,1769520645469,-1488.040989,0.00019178,2]
[403736969,1769520645478,-1488.040989,0.00019178,2]
[403736970,1769520645487,-1488.040989,0.00019178,2]
[403736971,1769520645496,-1488.040989,0.00019178,2]
[403736972,1769520645506,-1488.040989,0.00019178,2]
[403736973,1769520645515,-1488.040989,0.00019178,2]
[403736974,1769520645523,-1488.040989,0.00019178,2]
[403736975,1769520645532,-1488.040989,0.00019178,2]
[403736976,1769520645541,-1488.040989,0.00019178,2]
[403736977,1769520645550,-1488.040989,0.00019178,2]
[403736978,1769520645559,-1488.040989,0.00019178,2]
[403736979,1769520645568,-1488.040989,0.00019178,2]
[403736980,1769520645577,-1488.040989,0.00019178,2]
[403736981,1769520645587,-154.22929,0.00019178,2]
[403736982,1769520645596,-154.22929,0.00019178,2]
[403736983,1769520645606,-154.22929,0.00019178,2]
[403736984,1769520645616,-154.22929,0.00019178,2]
[403736985,1769520645625,-154.22929,0.00019178,2]
[403736986,1769520645635,-154.22929,0.00019178,2]
[403736987,1769520645644,-154.22929,0.00019178,2]
[403736988,1769520645653,-154.22929,0.00019178,2]
[403736989,1769520645664,-154.22929,0.00019178,2]
[403736990,1769520645674,-154.22929,0.00019178,2]
[403736991,1769520645683,-154.22929,0.00019178,2]
[403736992,1769520645693,-154.22929,0.00019178,2]
[403736993,1769520645703,-154.22929,0.00019178,2]
[403736994,1769520645712,-154.22929,0.00019178,2]
[403736995,1769520645722,-154.22929,0.00019178,2]
[403736996,1769520645731,-154.22929,0.00019178,2]
[403736997,1769520645740,-190.922185,0.00019178,2]
[403736998,1769520645750,-190.922185,0.00019178,2]
[403736999,1769520645759,-190.922185,0.00019178,2]
[403737000,1769520645768,-190.922185,0.00019178,2]
[403737001,1769520645778,-190.922185,0.00019178,2]
[403737002,1769520645787,-190.922185,0.00019178,2]
[403737003,1769520645796,-190.922185,0.00019178,2]
[403737004,1769520645806,-190.922185,0.00019178,2]
[403737005,1769520645815,-190.922185,0.00019178,2]
[403737006,1769520645825,-190.922185,0.00019178,2]
[403737007,1769520645834,-190.922185,0.00019178,2]
[403737008,1769520645843,-190.922185,0.00019178,2]
[403737009,1769520645854,-190.922185,0.00019178,2]
[403737010,1769520645863,-190.922185,0.00019178,2]
[403737011,1769520645872,-190.922185,0.00019178,2]
[403737012,1769520645882,-190.922185,0.00019178,2]
[403737013,1769520645891,-151.0,0.00019178,2]
[403737014,1769520645900,-151.0,0.00019178,2]
[403737015,1769520645909,-151.0,0.00019178,2]
[403737016,1769520645919,-151.0,0.00019178,2]
[403737017,1769520645928,-151.0,0.00019178,2]
[403737018,1769520645938,-151.0,0.00019178,2]
[403737019,1769520645950,-151.0,0.00019178,2]
[403737020,1769520646135,-151.0,0.00019178,2]
[403737021,1769520646147,-151.0,0.00019178,2]
[403737022,1769520646167,-151.0,0.00019178,2]
[403737023,1769520646184,-151.0,0.00019178,2]
[403737024,1769520646204,-151.0,0.00019178,2]
[403737025,1769520646230,-186.235497,0.00019178,2]
[403737027,1769520646243,-186.235497,0.00019178,2]
[403737028,1769520646259,-151.0,0.00019178,2]
[403737029,1769520646269,-186.235497,0.00019178,2]
[403737030,1769520646281,-227.166415,0.00019178,2]
[403737031,1769520646292,-186.235497,0.00019178,2]
[403737033,1769520646301,-186.235497,0.00019178,2]
[403737035,1769520646313,-186.235497,0.00019178,2]
[403737036,1769520646324,-186.235497,0.00019178,2]
[403737037,1769520646334,-186.235497,0.00019178,2]
[403737038,1769520646343,-186.235497,0.00019178,2]
[403737039,1769520646352,-186.235497,0.00019178,2]
[403737040,1769520646362,-186.235497,0.00019178,2]
[403737041,1769520646371,-186.235497,0.00019178,2]
[403737042,1769520646380,-186.235497,0.00019178,2]
[403737043,1769520646389,-186.235497,0.00019178,2]
[403737044,1769520646398,-186.235497,0.00019178,2]
[403737045,1769520646407,-186.235497,0.00019178,2]
[403737046,1769520646417,-186.235497,0.00019178,2]